[Event "*** Titled Tuesday Blitz"]
[Site "Chess.com"]
[Date "2020.04.21"]
[Round "7"]
[White "Firehand33"]
[Black "amintabatabaei"]
[Result "1/2-1/2"]
[WhiteElo "2669"]
[BlackElo "2821"]
[TimeControl "180+1"]
[EndTime "11:22:51 PDT"]
[Termination "Game drawn - timeout vs insufficient material"]

1. g3 {[%clk 0:03:00.3]} 1... g6 {[%clk 0:03:00.9]} 2. Bg2 {[%clk 0:03:00.8]}
2... Bg7 {[%clk 0:03:01.8]} 3. c4 {[%clk 0:03:01.1]} 3... d6 {[%clk 0:03:02.7]}
4. Nc3 {[%clk 0:03:01.7]} 4... Nd7 {[%clk 0:03:03.6]} 5. e3 {[%clk 0:03:01.8]}
5... Ngf6 {[%clk 0:03:04.5]} 6. Nge2 {[%clk 0:03:02.3]} 6... O-O {[%clk
0:03:05.4]} 7. O-O {[%clk 0:03:02.9]} 7... e5 {[%clk 0:03:06.3]} 8. d3 {[%clk
0:03:02.9]} 8... Re8 {[%clk 0:03:07.2]} 9. e4 {[%clk 0:03:00.7]} 9... c6 {[%clk
0:03:07]} 10. h3 {[%clk 0:02:59.8]} 10... a6 {[%clk 0:03:07.2]} 11. Be3 {[%clk
0:02:58.1]} 11... b5 {[%clk 0:03:07.7]} 12. b3 {[%clk 0:02:55.6]} 12... Bb7
{[%clk 0:03:08.1]} 13. Qd2 {[%clk 0:02:55.8]} 13... Nb6 {[%clk 0:03:07.3]} 14.
Rad1 {[%clk 0:02:46.3]} 14... b4 {[%clk 0:03:06]} 15. Nb1 {[%clk 0:02:43.4]}
15... a5 {[%clk 0:03:06.7]} 16. f4 {[%clk 0:02:38.5]} 16... Nfd7 {[%clk
0:03:06.8]} 17. f5 {[%clk 0:02:38.3]} 17... Nc5 {[%clk 0:03:06]} 18. g4 {[%clk
0:02:36.6]} 18... Qc7 {[%clk 0:03:05.1]} 19. Bh6 {[%clk 0:02:35.2]} 19... Bh8
{[%clk 0:03:04.3]} 20. Ng3 {[%clk 0:02:35.1]} 20... d5 {[%clk 0:03:04.4]} 21.
Qf2 {[%clk 0:02:32.1]} 21... Qe7 {[%clk 0:02:59]} 22. f6 {[%clk 0:02:06.5]}
22... Qd6 {[%clk 0:02:58.3]} 23. Nf5 {[%clk 0:02:06.5]} 23... gxf5 {[%clk
0:02:51.8]} 24. Qxf5 {[%clk 0:02:06.3]} 24... Bxf6 {[%clk 0:02:49.4]} 25. Qxf6
{[%clk 0:02:06.3]} 25... Qxf6 {[%clk 0:02:50.3]} 26. Rxf6 {[%clk 0:02:06.6]}
26... dxe4 {[%clk 0:02:50.1]} 27. dxe4 {[%clk 0:02:05.6]} 27... Rad8 {[%clk
0:02:50.8]} 28. Rdf1 {[%clk 0:02:01.2]} 28... Re6 {[%clk 0:02:47.5]} 29. Be3
{[%clk 0:01:57.5]} 29... Rxf6 {[%clk 0:02:46.1]} 30. Rxf6 {[%clk 0:01:57.6]}
30... Rd1+ {[%clk 0:02:47]} 31. Rf1 {[%clk 0:01:56.5]} 31... Rxf1+ {[%clk
0:02:47]} 32. Kxf1 {[%clk 0:01:57.4]} 32... Nbd7 {[%clk 0:02:47.4]} 33. Ke2
{[%clk 0:01:56.2]} 33... Ne6 {[%clk 0:02:46.8]} 34. Nd2 {[%clk 0:01:56.1]} 34...
c5 {[%clk 0:02:46.6]} 35. g5 {[%clk 0:01:52.3]} 35... Kg7 {[%clk 0:02:44.6]} 36.
h4 {[%clk 0:01:52.3]} 36... Nd4+ {[%clk 0:02:42.8]} 37. Kd3 {[%clk 0:01:52]}
37... Nf8 {[%clk 0:02:41.9]} 38. h5 {[%clk 0:01:51.3]} 38... Nfe6 {[%clk
0:02:41.1]} 39. Nf3 {[%clk 0:01:51.1]} 39... Nxf3 {[%clk 0:02:36.6]} 40. Bxf3
{[%clk 0:01:52]} 40... f6 {[%clk 0:02:34.5]} 41. gxf6+ {[%clk 0:01:46.1]} 41...
Kxf6 {[%clk 0:02:35.4]} 42. Bg4 {[%clk 0:01:46.5]} 42... Nd4 {[%clk 0:02:25.9]}
43. Bd7 {[%clk 0:01:43]} 43... Ke7 {[%clk 0:02:23.4]} 44. Bf5 {[%clk 0:01:41.1]}
44... Nxf5 {[%clk 0:01:53.8]} 45. exf5 {[%clk 0:01:42]} 45... e4+ {[%clk
0:01:48.1]} 46. Kd2 {[%clk 0:01:37.1]} 46... Kf6 {[%clk 0:01:49]} 47. Bxc5
{[%clk 0:01:36.4]} 47... Kxf5 {[%clk 0:01:49.9]} 48. Bb6 {[%clk 0:01:29.7]}
48... a4 {[%clk 0:01:50.2]} 49. Bc5 {[%clk 0:01:26.3]} 49... axb3 {[%clk
0:01:49]} 50. axb3 {[%clk 0:01:26.2]} 50... Kg5 {[%clk 0:01:49.4]} 51. Bxb4
{[%clk 0:01:23.7]} 51... Kxh5 {[%clk 0:01:49.7]} 52. Ke3 {[%clk 0:01:09.4]}
52... Kg4 {[%clk 0:01:47.3]} 53. Bd6 {[%clk 0:01:03]} 53... Kf5 {[%clk
0:01:32.6]} 54. b4 {[%clk 0:01:01]} 54... h5 {[%clk 0:01:23.1]} 55. b5 {[%clk
0:00:51.9]} 55... h4 {[%clk 0:01:22]} 56. c5 {[%clk 0:00:50.2]} 56... Ke6 {[%clk
0:01:22.2]} 57. Kd4 {[%clk 0:00:44.5]} 57... h3 {[%clk 0:01:21.3]} 58. Bg3
{[%clk 0:00:44]} 58... Kd7 {[%clk 0:01:18.6]} 59. c6+ {[%clk 0:00:41.9]} 59...
Bxc6 {[%clk 0:01:18.2]} 60. bxc6+ {[%clk 0:00:42.2]} 60... Kxc6 {[%clk
0:01:19.1]} 61. Kxe4 {[%clk 0:00:42.5]} 1/2-1/2

[Event "*** Titled Tuesday Blitz"]
[Site "Chess.com"]
[Date "2020.04.21"]
[Round "7"]
[White "Indianlad"]
[Black "DoHoChess"]
[Result "1-0"]
[WhiteElo "2980"]
[BlackElo "2559"]
[TimeControl "180+1"]
[EndTime "11:22:54 PDT"]
[Termination "Indianlad won on time"]

1. Nf3 {[%clk 0:03:00.9]} 1... d5 {[%clk 0:02:46.3]} 2. e3 {[%clk 0:03:00.5]}
2... c5 {[%clk 0:02:43.4]} 3. b3 {[%clk 0:02:58.9]} 3... Nc6 {[%clk 0:02:42.5]}
4. Bb5 {[%clk 0:02:56.4]} 4... Bd7 {[%clk 0:02:40.8]} 5. Bb2 {[%clk 0:02:52.7]}
5... Nf6 {[%clk 0:02:40.9]} 6. O-O {[%clk 0:02:50.9]} 6... e6 {[%clk 0:02:41.2]}
7. d3 {[%clk 0:02:48.9]} 7... Be7 {[%clk 0:02:39.5]} 8. Nbd2 {[%clk 0:02:48.5]}
8... O-O {[%clk 0:02:39.1]} 9. Bxc6 {[%clk 0:02:48.8]} 9... Bxc6 {[%clk
0:02:38.6]} 10. Ne5 {[%clk 0:02:49.7]} 10... Qc7 {[%clk 0:02:38.6]} 11. f4
{[%clk 0:02:50.2]} 11... Nd7 {[%clk 0:02:37.5]} 12. Qg4 {[%clk 0:02:42.9]} 12...
Nf6 {[%clk 0:02:17.5]} 13. Qh3 {[%clk 0:02:38.7]} 13... Ne8 {[%clk 0:02:08.2]}
14. Ndf3 {[%clk 0:02:34.5]} 14... Nd6 {[%clk 0:02:00.2]} 15. Ng5 {[%clk
0:02:33.8]} 15... h6 {[%clk 0:01:59.4]} 16. Nxe6 {[%clk 0:02:01.7]} 16... fxe6
{[%clk 0:01:50.1]} 17. Qxe6+ {[%clk 0:02:01.2]} 17... Nf7 {[%clk 0:01:43.5]} 18.
Ng4 {[%clk 0:01:44.4]} 18... Qd6 {[%clk 0:01:32.6]} 19. Nxh6+ {[%clk 0:01:43.2]}
19... gxh6 {[%clk 0:01:31.8]} 20. Qg4+ {[%clk 0:01:43]} 20... Ng5 {[%clk
0:01:30.2]} 21. fxg5 {[%clk 0:01:41.2]} 21... Qg6 {[%clk 0:01:23.5]} 22. h4
{[%clk 0:01:33.9]} 22... hxg5 {[%clk 0:01:23.4]} 23. h5 {[%clk 0:01:34.1]} 23...
Qh6 {[%clk 0:01:13.7]} 24. Be5 {[%clk 0:01:34.7]} 24... Rxf1+ {[%clk 0:01:08.6]}
25. Rxf1 {[%clk 0:01:34.1]} 25... Rf8 {[%clk 0:01:09.2]} 26. Rxf8+ {[%clk
0:01:26.3]} 26... Bxf8 {[%clk 0:01:10.1]} 27. d4 {[%clk 0:01:26.7]} 27... cxd4
{[%clk 0:01:08.7]} 28. exd4 {[%clk 0:01:26.3]} 28... Be8 {[%clk 0:01:05.9]} 29.
Qc8 {[%clk 0:01:16.7]} 29... Qc6 {[%clk 0:01:04.8]} 30. Qf5 {[%clk 0:01:14.1]}
30... Bxh5 {[%clk 0:01:01.3]} 31. Qxg5+ {[%clk 0:01:11.5]} 31... Qg6 {[%clk
0:01:01.1]} 32. Qh4 {[%clk 0:01:09.8]} 32... Bf3 {[%clk 0:00:39.9]} 33. Qh3
{[%clk 0:00:58.6]} 33... Be4 {[%clk 0:00:38.9]} 34. c4 {[%clk 0:00:59.2]} 34...
Bh6 {[%clk 0:00:34.9]} 35. Qc8+ {[%clk 0:00:50.6]} 35... Bf8 {[%clk 0:00:31.9]}
36. Qh3 {[%clk 0:00:51.3]} 36... Bg7 {[%clk 0:00:16]} 37. cxd5 {[%clk
0:00:37.5]} 37... Bxd5 {[%clk 0:00:15.9]} 38. Qc8+ {[%clk 0:00:38]} 38... Kh7
{[%clk 0:00:15.1]} 39. Qh3+ {[%clk 0:00:38.6]} 39... Kg8 {[%clk 0:00:14.7]} 40.
Qc8+ {[%clk 0:00:38.6]} 40... Bf8 {[%clk 0:00:14.7]} 41. Qh3 {[%clk 0:00:37.7]}
41... Be6 {[%clk 0:00:14]} 42. Qh8+ {[%clk 0:00:37]} 42... Kf7 {[%clk
0:00:14.1]} 43. Qh4 {[%clk 0:00:37.6]} 43... Bd5 {[%clk 0:00:13.6]} 44. Qh3
{[%clk 0:00:37]} 44... Be7 {[%clk 0:00:13.8]} 45. Kh2 {[%clk 0:00:29]} 45... Bc6
{[%clk 0:00:09.9]} 46. Kg1 {[%clk 0:00:28.2]} 46... Bd5 {[%clk 0:00:07.1]} 47.
Kh2 {[%clk 0:00:28.6]} 47... Be6 {[%clk 0:00:07.1]} 48. Qf3+ {[%clk 0:00:28.4]}
48... Qf5 {[%clk 0:00:07.5]} 49. Qxb7 {[%clk 0:00:29]} 49... Qh5+ {[%clk
0:00:06.7]} 50. Kg1 {[%clk 0:00:29.6]} 50... Qd1+ {[%clk 0:00:07]} 51. Kf2
{[%clk 0:00:30.2]} 51... Qd2+ {[%clk 0:00:07.1]} 52. Kg3 {[%clk 0:00:30.7]}
52... Qe1+ {[%clk 0:00:05.6]} 53. Kf3 {[%clk 0:00:27.6]} 53... Qd1+ {[%clk
0:00:05.2]} 54. Ke3 {[%clk 0:00:24.7]} 54... Qe1+ {[%clk 0:00:03.1]} 55. Kf4
{[%clk 0:00:21.5]} 1-0

[Event "*** Titled Tuesday Blitz"]
[Site "Chess.com"]
[Date "2020.04.21"]
[Round "7"]
[White "Ekka83"]
[Black "velemajstor767276"]
[Result "0-1"]
[WhiteElo "2263"]
[BlackElo "2508"]
[TimeControl "180+1"]
[EndTime "11:22:54 PDT"]
[Termination "velemajstor767276 won by checkmate"]

1. e4 {[%clk 0:02:58.6]} 1... c5 {[%clk 0:03:00.2]} 2. Nf3 {[%clk 0:02:58.2]}
2... e6 {[%clk 0:03:00.7]} 3. a3 {[%clk 0:02:55.4]} 3... b6 {[%clk 0:02:54.2]}
4. Bc4 {[%clk 0:02:54.5]} 4... Bb7 {[%clk 0:02:50.6]} 5. d3 {[%clk 0:02:48.2]}
5... d6 {[%clk 0:02:40.3]} 6. O-O {[%clk 0:02:46.4]} 6... Nf6 {[%clk 0:02:40.2]}
7. Nc3 {[%clk 0:02:45.6]} 7... Be7 {[%clk 0:02:40.6]} 8. Bg5 {[%clk 0:02:44.9]}
8... O-O {[%clk 0:02:40.8]} 9. h3 {[%clk 0:02:42.8]} 9... a6 {[%clk 0:02:40.7]}
10. Ba2 {[%clk 0:02:41.3]} 10... Nbd7 {[%clk 0:02:38.5]} 11. Ne2 {[%clk
0:02:39.6]} 11... d5 {[%clk 0:02:31.7]} 12. e5 {[%clk 0:02:38.3]} 12... Ne8
{[%clk 0:02:28.5]} 13. h4 {[%clk 0:02:33.6]} 13... Bxg5 {[%clk 0:02:23.3]} 14.
hxg5 {[%clk 0:02:32.1]} 14... d4 {[%clk 0:02:23.8]} 15. g6 {[%clk 0:02:06]}
15... hxg6 {[%clk 0:02:19.5]} 16. Nf4 {[%clk 0:02:00.4]} 16... Bxf3 {[%clk
0:02:14]} 17. Qxf3 {[%clk 0:02:01.3]} 17... Nxe5 {[%clk 0:02:14.3]} 18. Qe4
{[%clk 0:02:00.5]} 18... Nd7 {[%clk 0:01:10.7]} 19. Nxe6 {[%clk 0:01:55.1]}
19... Nef6 {[%clk 0:00:46.4]} 20. Qxg6 {[%clk 0:01:17.4]} 20... fxe6 {[%clk
0:00:42.5]} 21. Bxe6+ {[%clk 0:01:16.3]} 21... Kh8 {[%clk 0:00:42.9]} 22. Rae1
{[%clk 0:01:15.4]} 22... Qe8 {[%clk 0:00:23.3]} 23. Qg3 {[%clk 0:01:14.7]} 23...
Qh5 {[%clk 0:00:18.8]} 24. f3 {[%clk 0:00:56.6]} 24... Rae8 {[%clk 0:00:17.6]}
25. Kf2 {[%clk 0:00:53.2]} 25... Rxe6 {[%clk 0:00:10.3]} 26. Rh1 {[%clk
0:00:44.4]} 26... Rxe1 {[%clk 0:00:10.2]} 27. Rxh5+ {[%clk 0:00:44.2]} 27...
Nxh5 {[%clk 0:00:11.1]} 28. Qh4 {[%clk 0:00:44.5]} 28... Re5 {[%clk 0:00:09.2]}
29. g4 {[%clk 0:00:42.9]} 29... Nf6 {[%clk 0:00:09.2]} 30. gxh5 {[%clk
0:00:41.1]} 30... Nxh5 {[%clk 0:00:09.2]} 31. c3 {[%clk 0:00:34.9]} 31... dxc3
{[%clk 0:00:06]} 32. bxc3 {[%clk 0:00:35.8]} 32... Ref5 {[%clk 0:00:06.2]} 33.
Ke2 {[%clk 0:00:33.7]} 33... Re8+ {[%clk 0:00:05.2]} 34. Kd2 {[%clk 0:00:32.9]}
34... Kg8 {[%clk 0:00:05.7]} 35. Qc4+ {[%clk 0:00:32.5]} 35... Kh7 {[%clk
0:00:05.8]} 36. Qg4 {[%clk 0:00:31.3]} 36... Ref8 {[%clk 0:00:04.7]} 37. d4
{[%clk 0:00:29.8]} 37... cxd4 {[%clk 0:00:04.2]} 38. cxd4 {[%clk 0:00:30]} 38...
R8f6 {[%clk 0:00:03.7]} 39. Kc3 {[%clk 0:00:28.8]} 39... Nf4 {[%clk 0:00:02.8]}
40. Qh4+ {[%clk 0:00:27.7]} 40... Kg6 {[%clk 0:00:03.4]} 41. Qg4+ {[%clk
0:00:27]} 41... Kf7 {[%clk 0:00:04]} 42. Kb4 {[%clk 0:00:23.8]} 42... Nd5+
{[%clk 0:00:04.6]} 43. Kb3 {[%clk 0:00:22.6]} 43... b5 {[%clk 0:00:04.4]} 44. f4
{[%clk 0:00:15.7]} 44... Nxf4 {[%clk 0:00:02.6]} 45. Qf3 {[%clk 0:00:14.6]}
45... Nd5 {[%clk 0:00:02.4]} 46. Qe4 {[%clk 0:00:13.2]} 46... Rf3+ {[%clk
0:00:03]} 47. Kc2 {[%clk 0:00:13.3]} 47... Rf2+ {[%clk 0:00:02.7]} 48. Kd1
{[%clk 0:00:13.5]} 48... Nc3+ {[%clk 0:00:01.1]} 49. Ke1 {[%clk 0:00:12.9]}
49... Nxe4 {[%clk 0:00:02]} 50. d5 {[%clk 0:00:12.8]} 50... Nd6 {[%clk
0:00:02.9]} 51. a4 {[%clk 0:00:12.8]} 51... R2f3 {[%clk 0:00:03.8]} 52. Ke2
{[%clk 0:00:12.9]} 52... Rb3 {[%clk 0:00:03.9]} 53. axb5 {[%clk 0:00:13.1]}
53... axb5 {[%clk 0:00:04.8]} 54. Kd2 {[%clk 0:00:13.7]} 54... Ra3 {[%clk
0:00:05.4]} 55. Ke1 {[%clk 0:00:14.6]} 55... Rh3 {[%clk 0:00:05.7]} 56. Kd1
{[%clk 0:00:15.2]} 56... Rf2 {[%clk 0:00:05.6]} 57. Ke1 {[%clk 0:00:16.1]} 57...
Ra2 {[%clk 0:00:06]} 58. Kf1 {[%clk 0:00:16.2]} 58... Rh1# {[%clk 0:00:06.7]}
0-1

[Event "*** Titled Tuesday Blitz"]
[Site "Chess.com"]
[Date "2020.04.21"]
[Round "7"]
[White "semchik73"]
[Black "qqwow"]
[Result "1/2-1/2"]
[WhiteElo "2281"]
[BlackElo "2453"]
[TimeControl "180+1"]
[EndTime "11:22:54 PDT"]
[Termination "Game drawn by repetition"]

1. Nf3 {[%clk 0:03:00.3]} 1... d5 {[%clk 0:02:56.8]} 2. c4 {[%clk 0:03:00.1]}
2... d4 {[%clk 0:02:56.8]} 3. e3 {[%clk 0:03:00.3]} 3... c5 {[%clk 0:02:55.6]}
4. b4 {[%clk 0:03:00.5]} 4... f6 {[%clk 0:02:52.9]} 5. bxc5 {[%clk 0:02:55.2]}
5... e5 {[%clk 0:02:52.9]} 6. Nxe5 {[%clk 0:02:55.2]} 6... fxe5 {[%clk 0:02:30]}
7. Qh5+ {[%clk 0:02:54.8]} 7... Kd7 {[%clk 0:02:19.1]} 8. Qxe5 {[%clk
0:02:55.2]} 8... Nc6 {[%clk 0:02:18.5]} 9. Qd5+ {[%clk 0:02:54.6]} 9... Ke8
{[%clk 0:02:16.5]} 10. exd4 {[%clk 0:02:39]} 10... Qxd5 {[%clk 0:02:15.4]} 11.
cxd5 {[%clk 0:02:38.7]} 11... Nxd4 {[%clk 0:02:16.3]} 12. Bd3 {[%clk 0:02:34.7]}
12... Bxc5 {[%clk 0:02:15.5]} 13. Nc3 {[%clk 0:02:31.7]} 13... Nf6 {[%clk
0:02:13.8]} 14. Na4 {[%clk 0:02:28.1]} 14... Bd6 {[%clk 0:02:09.8]} 15. Bb2
{[%clk 0:02:28]} 15... Nf5 {[%clk 0:02:07]} 16. O-O {[%clk 0:02:22.4]} 16... Kf7
{[%clk 0:02:06.6]} 17. Rac1 {[%clk 0:02:20.3]} 17... Bd7 {[%clk 0:02:06.3]} 18.
Nc5 {[%clk 0:02:16.8]} 18... Bxc5 {[%clk 0:02:02.1]} 19. Rxc5 {[%clk 0:02:17.1]}
19... Rac8 {[%clk 0:02:03]} 20. Rfc1 {[%clk 0:02:16.1]} 20... Rxc5 {[%clk
0:02:02.4]} 21. Rxc5 {[%clk 0:02:16.6]} 21... Rc8 {[%clk 0:02:02.8]} 22. Ra5
{[%clk 0:02:12.6]} 22... a6 {[%clk 0:02:02.6]} 23. f3 {[%clk 0:02:03.7]} 23...
Nd6 {[%clk 0:01:59.8]} 24. Bd4 {[%clk 0:01:49.2]} 24... Nc4 {[%clk 0:01:54.1]}
25. Rc5 {[%clk 0:01:46.1]} 25... Rxc5 {[%clk 0:01:52.2]} 26. Bxc5 {[%clk
0:01:46.5]} 26... Nxd2 {[%clk 0:01:34.1]} 27. Kf2 {[%clk 0:01:43.3]} 27... Bb5
{[%clk 0:01:34.3]} 28. Bf5 {[%clk 0:01:28.6]} 28... Nc4 {[%clk 0:01:31.2]} 29.
Be6+ {[%clk 0:01:28.5]} 29... Ke8 {[%clk 0:01:29.3]} 30. d6 {[%clk 0:01:26.2]}
30... Nd7 {[%clk 0:01:26.9]} 31. Bd4 {[%clk 0:01:23.7]} 31... g6 {[%clk
0:01:25.1]} 32. a4 {[%clk 0:01:23.5]} 32... Nxd6 {[%clk 0:01:16.4]} 33. axb5
{[%clk 0:01:23.9]} 33... Nxb5 {[%clk 0:01:17.3]} 34. Be3 {[%clk 0:01:19.8]}
34... Ke7 {[%clk 0:01:11]} 35. Bg8 {[%clk 0:01:18.6]} 35... h5 {[%clk
0:00:58.5]} 36. Bd5 {[%clk 0:01:15.1]} 36... Nd6 {[%clk 0:00:55]} 37. Bf4 {[%clk
0:01:10.8]} 37... b5 {[%clk 0:00:55]} 38. Ke2 {[%clk 0:01:07.9]} 38... a5 {[%clk
0:00:52.8]} 39. Kd3 {[%clk 0:01:05.5]} 39... Nc5+ {[%clk 0:00:52]} 40. Kc2
{[%clk 0:01:04.5]} 40... b4 {[%clk 0:00:48.8]} 41. Be3 {[%clk 0:00:43.9]} 41...
Ndb7 {[%clk 0:00:29.8]} 42. g4 {[%clk 0:00:42.4]} 42... hxg4 {[%clk 0:00:29.4]}
43. fxg4 {[%clk 0:00:41.9]} 43... Kd6 {[%clk 0:00:29.6]} 44. Bf3 {[%clk
0:00:38]} 44... a4 {[%clk 0:00:28.1]} 45. h4 {[%clk 0:00:37.8]} 45... Na5 {[%clk
0:00:25.8]} 46. h5 {[%clk 0:00:36.6]} 46... gxh5 {[%clk 0:00:24.7]} 47. gxh5
{[%clk 0:00:36.1]} 47... Nc4 {[%clk 0:00:25]} 48. Bxc5+ {[%clk 0:00:27.1]} 48...
Kxc5 {[%clk 0:00:25.9]} 49. h6 {[%clk 0:00:27.6]} 49... b3+ {[%clk 0:00:25.1]}
50. Kc3 {[%clk 0:00:27.7]} 50... Ne5 {[%clk 0:00:18.5]} 51. Be4 {[%clk
0:00:26.7]} 51... Nf7 {[%clk 0:00:18]} 52. h7 {[%clk 0:00:25.6]} 52... Nh8
{[%clk 0:00:17.5]} 53. Bf5 {[%clk 0:00:19.9]} 53... Kd6 {[%clk 0:00:16]} 54. Bd3
{[%clk 0:00:18.1]} 54... Kc5 {[%clk 0:00:15.9]} 55. Bf5 {[%clk 0:00:17.8]} 55...
Kb5 {[%clk 0:00:16]} 56. Bd7+ {[%clk 0:00:17.4]} 56... Ka5 {[%clk 0:00:16.1]}
57. Bf5 {[%clk 0:00:17.1]} 57... Kb5 {[%clk 0:00:14.5]} 58. Bd7+ {[%clk
0:00:16.8]} 58... Ka5 {[%clk 0:00:14.1]} 59. Bf5 {[%clk 0:00:16.3]} 59... Nf7
{[%clk 0:00:14.1]} 60. Be6 {[%clk 0:00:15]} 60... Nh8 {[%clk 0:00:13.9]} 61. Bf5
{[%clk 0:00:14.7]} 1/2-1/2

[Event "*** Titled Tuesday Blitz"]
[Site "Chess.com"]
[Date "2020.04.21"]
[Round "7"]
[White "RichardWe"]
[Black "northridgehawk"]
[Result "0-1"]
[WhiteElo "2389"]
[BlackElo "2229"]
[TimeControl "180+1"]
[EndTime "11:22:58 PDT"]
[Termination "northridgehawk won on time"]

1. d4 {[%clk 0:03:00.8]} 1... Nf6 {[%clk 0:02:59.1]} 2. c4 {[%clk 0:03:00.4]}
2... g6 {[%clk 0:02:58.5]} 3. Nc3 {[%clk 0:03:00.2]} 3... d5 {[%clk 0:02:54.2]}
4. e3 {[%clk 0:02:56.6]} 4... Bg7 {[%clk 0:02:52.8]} 5. Nf3 {[%clk 0:02:56.9]}
5... O-O {[%clk 0:02:47.4]} 6. cxd5 {[%clk 0:02:57]} 6... Nxd5 {[%clk
0:02:39.4]} 7. Bc4 {[%clk 0:02:57.1]} 7... Nb6 {[%clk 0:02:39.3]} 8. Bb3 {[%clk
0:02:57.5]} 8... Nc6 {[%clk 0:02:40.2]} 9. O-O {[%clk 0:02:57.3]} 9... Bg4
{[%clk 0:02:33.2]} 10. h3 {[%clk 0:02:57]} 10... Bxf3 {[%clk 0:02:32.2]} 11.
Qxf3 {[%clk 0:02:56.5]} 11... e5 {[%clk 0:02:32.6]} 12. dxe5 {[%clk 0:02:45.1]}
12... Nxe5 {[%clk 0:02:33.5]} 13. Qxb7 {[%clk 0:02:41.2]} 13... Nd3 {[%clk
0:02:32.6]} 14. Rd1 {[%clk 0:02:38.3]} 14... Nc5 {[%clk 0:02:12.8]} 15. Rxd8
{[%clk 0:02:30.7]} 15... Nxb7 {[%clk 0:02:12.3]} 16. Rxa8 {[%clk 0:02:27.4]}
16... Rxa8 {[%clk 0:02:12.1]} 17. e4 {[%clk 0:02:23.7]} 17... Rd8 {[%clk
0:02:09.6]} 18. Be3 {[%clk 0:02:17.1]} 18... Nd6 {[%clk 0:02:06]} 19. Rd1 {[%clk
0:02:12.7]} 19... Rd7 {[%clk 0:02:04]} 20. f4 {[%clk 0:02:04.7]} 20... Re7
{[%clk 0:02:01]} 21. e5 {[%clk 0:02:03.8]} 21... Nf5 {[%clk 0:02:00.4]} 22. Bc5
{[%clk 0:02:02.5]} 22... Re8 {[%clk 0:02:00.2]} 23. Ne4 {[%clk 0:01:27.3]} 23...
h6 {[%clk 0:01:56.8]} 24. g4 {[%clk 0:01:18]} 24... Nh4 {[%clk 0:01:46.6]} 25.
Bf2 {[%clk 0:01:04.8]} 25... g5 {[%clk 0:01:40.6]} 26. Bxh4 {[%clk 0:01:03.8]}
26... gxh4 {[%clk 0:01:41.5]} 27. Kf2 {[%clk 0:00:56.2]} 27... Kf8 {[%clk
0:01:35.2]} 28. Kf3 {[%clk 0:00:55.4]} 28... Ke7 {[%clk 0:01:31.5]} 29. g5
{[%clk 0:00:46.7]} 29... hxg5 {[%clk 0:01:22.8]} 30. Nxg5 {[%clk 0:00:46.5]}
30... f6 {[%clk 0:01:23.2]} 31. Ne6 {[%clk 0:00:41.4]} 31... Bh6 {[%clk
0:01:20.1]} 32. Nxc7 {[%clk 0:00:39.6]} 32... Rf8 {[%clk 0:01:15]} 33. Ne6
{[%clk 0:00:25.4]} 33... Rf7 {[%clk 0:00:58.9]} 34. Nd4 {[%clk 0:00:17.4]} 34...
fxe5 {[%clk 0:00:57.2]} 35. Bxf7 {[%clk 0:00:17.2]} 35... exd4 {[%clk
0:00:56.1]} 36. Bb3 {[%clk 0:00:17]} 36... Bg7 {[%clk 0:00:54.5]} 37. Kg4 {[%clk
0:00:16.9]} 37... Bf6 {[%clk 0:00:54.5]} 38. Kf5 {[%clk 0:00:16.9]} 38... Bg7
{[%clk 0:00:52.6]} 39. Kg6 {[%clk 0:00:14.1]} 39... Bh8 {[%clk 0:00:51.9]} 40.
f5 {[%clk 0:00:13.9]} 40... Nd7 {[%clk 0:00:51.1]} 41. Re1+ {[%clk 0:00:13.8]}
41... Ne5+ {[%clk 0:00:49.5]} 42. Kh5 {[%clk 0:00:12.3]} 42... Bf6 {[%clk
0:00:36.3]} 43. Bd1 {[%clk 0:00:08.1]} 43... d3 {[%clk 0:00:35.6]} 44. Re4
{[%clk 0:00:07.4]} 44... Kd6 {[%clk 0:00:34.7]} 45. b4 {[%clk 0:00:07.6]} 45...
Kd5 {[%clk 0:00:34.6]} 46. Rxh4 {[%clk 0:00:05.3]} 46... Bxh4 {[%clk 0:00:31.9]}
47. Kxh4 {[%clk 0:00:05.8]} 47... Nc4 {[%clk 0:00:31.5]} 48. Kg5 {[%clk
0:00:04.5]} 48... Ne3 {[%clk 0:00:31.7]} 49. Bf3+ {[%clk 0:00:04.7]} 49... Ke5
{[%clk 0:00:30]} 50. f6 {[%clk 0:00:04.1]} 50... Ke6 {[%clk 0:00:30.1]} 51. Kg6
{[%clk 0:00:03.7]} 51... Nc4 {[%clk 0:00:27.4]} 52. f7 {[%clk 0:00:03.1]} 52...
Ne5+ {[%clk 0:00:27.7]} 53. Kg7 {[%clk 0:00:02]} 53... Nxf7 {[%clk 0:00:28.6]}
0-1